bitfinex/quotes_ETHUSD_20250605
["timestamp","ask_amount","ask_price","bid_price","bid_amount"]
[1749096352324,0.80098884,2623.9,2623.8,16.023]
[1749096353076,0.80098884,2623.9,2623.8,1.596]
[1749096353419,0.80098884,2623.9,2623.4,10.013188]
[1749096353798,0.80098884,2623.9,2623.5,10.0]
[1749096353982,0.80098884,2623.9,2623.4,7.50156]
[1749096354183,0.80098884,2623.9,2623.5,10.0]
[1749096354386,0.80098884,2623.9,2623.6,6.212]
[1749096355283,0.80098884,2623.9,2623.7,9.826]
[1749096356224,0.80098884,2623.9,2623.8,6.209]
[1749096356619,1.35098884,2623.9,2623.8,1.612]
[1749096357783,1.35098884,2623.9,2623.8,7.82]
[1749096358992,1.37098884,2623.9,2623.8,7.82]
[1749096360623,1.37098884,2623.9,2623.8,1.612]
[1749096360918,1.355,2623.5,2622.4,3.32374898]
[1749096361129,0.55,2623.4,2622.5,7.819]
[1749096361298,0.55,2623.2,2622.6,7.819]
[1749096361485,3.87374898,2623.2,2622.6,1.612]
[1749096361685,0.55,2623.0,2622.6,1.612]
[1749096361885,0.55,2623.0,2622.7,6.207]
[1749096362516,1.3818,2623.4,2622.8,3.32374898]
[1749096362829,0.55,2623.7,2623.0,10.0]
[1749096363033,0.74518,2623.7,2623.2,10.0]
[1749096363325,0.74518,2623.7,2623.3,1.612]
[1749096364317,0.55,2623.5,2623.3,1.612]
[1749096365387,0.55,2623.5,2623.4,8.216]
[1749096371841,1.3648,2623.6,2623.4,8.216]
[1749096372026,0.55,2623.7,2623.4,8.216]
[1749096378701,0.57,2623.9,2623.6,10.0]
[1749096379000,0.57,2623.9,2623.4,8.216]
[1749096380875,0.55,2623.7,2623.4,8.216]
[1749096381076,0.55,2623.7,2623.5,6.199]
[1749096381387,0.55,2623.7,2623.6,9.828]
[1749096382528,0.55,2623.7,2623.6,16.027]
[1749096382819,0.74805,2623.7,2623.6,16.027]
[1749096383235,0.74805,2623.7,2623.6,9.828]
[1749096383438,0.74805,2623.7,2623.6,16.025]
[1749096387502,0.74805,2623.7,2623.6,16.022]
[1749096387706,2.19225,2623.7,2623.6,16.012]
[1749096398879,2.19225,2623.7,2623.6,1.603]
[1749096399988,2.19225,2623.7,2623.6,7.792]
[1749096402135,0.02,2623.9,2623.6,7.792]
[1749096404292,0.00152488,2623.9,2623.7,18.001035]
[1749096405300,0.00152488,2623.9,2623.8,21.401619]
[1749096405588,0.00152488,2623.9,2623.8,19.862619]
[1749096406401,0.00152488,2623.9,2623.8,10.564783]
[1749096406603,0.00152488,2623.9,2623.8,8.216]
[1749096408909,0.00152488,2623.9,2623.8,14.405]
[1749096410935,3.87527386,2623.9,2623.8,8.216]
[1749096411102,4.44824125,2623.9,2623.8,16.008]
[1749096411302,1.12449227,2623.9,2623.8,16.008]
[1749096416842,1.12449227,2623.9,2623.8,9.819]
[1749096417043,1.12449227,2623.9,2623.8,16.007]
[1749096418125,4.44824125,2623.9,2623.8,16.002]
[1749096419115,4.44824125,2623.9,2623.8,9.814]
[1749096419314,4.44824125,2623.9,2623.8,16.002]
[1749096420446,4.44824125,2623.9,2623.8,1.598]
[1749096421749,4.44824125,2623.9,2623.8,7.786]
[1749096422443,4.44824125,2623.9,2623.8,1.598]
[1749096422649,4.44824125,2623.9,2623.8,7.786]
[1749096423250,5.83104125,2623.9,2623.8,7.786]
[1749096425516,5.83104125,2623.9,2623.8,16.002]
[1749096425718,2.50729227,2623.9,2623.8,16.002]
[1749096425912,0.55152488,2623.9,2623.8,16.002]
[1749096437674,0.55152488,2623.9,2623.8,9.814]
[1749096437828,0.55152488,2623.9,2623.8,16.002]
[1749096438175,0.00152488,2623.9,2623.8,16.002]
[1749096445662,0.00152488,2623.9,2623.8,9.814]
[1749096445869,3.87527386,2623.9,2623.8,16.002]
[1749096446049,0.55152488,2623.9,2623.8,16.002]
[1749096446253,0.93905227,2623.9,2623.8,16.002]
[1749096446702,0.93905227,2623.9,2623.8,9.814]
[1749096446931,0.93905227,2623.9,2623.8,16.002]
[1749096448388,0.55152488,2623.9,2623.8,16.002]
[1749096451306,0.00152488,2623.9,2623.8,16.002]
[1749096451906,0.00152488,2623.9,2623.8,1.598]
[1749096453213,0.00152488,2623.9,2623.8,7.785]
[1749096455289,0.00152488,2623.9,2623.8,16.001]
[1749096456709,0.00152488,2623.9,2623.8,46.001]
[1749096457014,0.00014428,2623.9,2623.8,37.732479]
[1749096457195,0.00014428,2623.9,2623.8,34.783406]
[1749096457398,0.00014428,2623.9,2623.8,32.448229]
[1749096458820,0.00014428,2623.9,2623.8,29.736895]
[1749096463790,0.00014428,2623.9,2623.8,27.487495]
[1749096464013,0.00014428,2623.9,2623.8,22.843771]
[1749096466931,0.55,2624.5,2623.8,22.843771]
[1749096467101,1.0690249,2624.5,2623.8,16.001]
[1749096474346,4.70764898,2624.4,2623.8,8.216]
[1749096474645,1.9339,2623.9,2623.8,8.216]
[1749096474845,1.9339,2623.9,2623.8,15.998]
[1749096475052,2.4596649,2623.9,2623.8,9.813]
[1749096475246,2.4596649,2623.9,2623.8,15.998]
[1749096475847,2.4596649,2623.9,2623.8,15.997]
[1749096476148,2.4596649,2623.9,2623.8,8.216]
[1749096476349,2.4596649,2623.9,2623.8,15.997]
[1749096479761,2.4596649,2623.9,2623.8,8.216]
[1749096480075,2.4596649,2623.9,2623.8,15.998]
[1749096485737,5.25764898,2623.9,2623.8,15.998]
[1749096486279,5.25764898,2623.9,2623.8,9.813]
[1749096486639,5.25764898,2623.9,2623.8,15.998]
[1749096486835,1.9339,2623.9,2623.8,15.998]
[1749096488743,1.9339,2623.9,2623.8,15.999]
[1749096489248,2.4596649,2623.9,2623.8,9.813]
[1749096489455,2.4596649,2623.9,2623.8,8.216]
[1749096489663,2.4596649,2623.9,2623.8,15.999]
[1749096490542,2.4596649,2623.9,2623.8,9.813]
[1749096490748,2.4596649,2623.9,2623.8,15.999]
[1749096491186,2.4596649,2623.9,2623.8,9.813]
[1749096491355,2.4596649,2623.9,2622.1,0.02]
[1749096491562,0.55,2622.9,2622.3,3.536637]
[1749096491764,0.55,2622.9,2622.5,10.0]
[1749096492085,1.3788,2623.7,2622.4,10.0]
[1749096492294,0.55,2623.2,2622.6,10.0]
[1749096492452,0.55,2623.2,2622.7,10.0]
[1749096492770,0.55,2623.4,2622.8,1.597]
[1749096492963,0.55,2623.4,2622.9,6.186]
[1749096493516,0.55,2623.6,2622.9,6.186]
[1749096493657,0.55,2623.3,2622.9,6.186]
[1749096495385,0.55,2623.3,2623.0,8.217]
[1749096498957,0.55,2623.3,2623.1,6.186]
[1749096501594,0.01245373,2622.8,2622.3,27.394535]
[1749096501889,0.01245373,2622.8,2622.5,17.588237]
[1749096502061,0.00068659,2622.8,2622.5,17.588237]
[1749096502680,0.00068659,2622.8,2622.7,18.954242]
[1749096502861,0.00068659,2622.8,2622.7,8.954242]
[1749096503700,1.3279,2623.6,2622.7,8.954242]
[1749096503885,0.02,2622.9,2622.7,8.954242]
[1749096505180,0.02,2622.9,2622.8,12.215274]
[1749096505506,0.02,2622.9,2622.8,10.728306]
[1749096507897,0.02,2622.9,2622.8,14.05205498]
[1749096509614,0.02,2622.9,2622.8,10.728306]
[1749096509815,0.00322687,2622.9,2622.8,10.728306]
[1749096510163,0.00322687,2622.9,2622.8,14.05205498]
[1749096511964,0.00022632,2622.9,2622.8,14.05205498]
[1749096512988,0.00022632,2622.9,2622.8,10.728306]
[1749096513197,0.00022632,2622.9,2622.8,16.71395]
[1749096513386,0.00022632,2622.9,2622.8,18.30995]
[1749096519801,0.00022632,2622.9,2622.8,1.596]
[1749096519998,0.00022632,2622.9,2622.8,19.57675]
[1749096520380,0.00022632,2622.9,2622.5,23.547048]
[1749096520578,0.00022632,2622.9,2622.7,10.0]
[1749096520783,0.55022632,2622.9,2622.8,1.596]
[1749096520992,1.89222632,2622.9,2622.8,7.78]
[1749096521195,2.08686895,2622.9,2622.8,7.78]
[1749096522315,0.00022632,2622.9,2622.8,17.936799]
[1749096522613,0.00022632,2622.9,2622.8,13.789638]
[1749096522781,1.342,2623.2,2622.8,7.78]
[1749096523805,0.55,2623.1,2622.8,1.596]
[1749096524002,0.55,2623.1,2622.9,6.184]
[1749096524208,1.0715749,2623.1,2623.0,6.184]
[1749096525012,1.0715749,2623.1,2623.0,6.185]
[1749096525316,1.0715749,2623.1,2623.0,15.999]
[1749096529911,0.55,2623.1,2623.0,15.999]
[1749096534639,0.55,2623.1,2623.0,8.218]
[1749096534846,0.55,2623.1,2623.0,15.998]
[1749096535965,0.55,2623.1,2623.0,1.596]
[1749096537176,0.55,2623.1,2623.0,7.78]
[1749096538383,0.02,2622.9,2622.2,20.954405]
[1749096539390,0.02,2622.9,2622.2,16.858498]
[1749096539710,0.02,2622.9,2622.4,28.634248]
[1749096540004,0.02,2622.9,2622.4,18.634248]
[1749096542617,0.02,2622.9,2622.3,6.184]
[1749096542779,0.02,2622.9,2622.4,6.36846752]
[1749096542978,0.02,2622.9,2622.5,10.0]
[1749096543287,0.02,2622.9,2622.4,14.179408]
[1749096545313,0.02,2622.9,2622.5,9.813]
[1749096546523,0.02,2622.9,2622.6,6.184]
[1749096547110,0.55,2622.7,2622.5,9.813]
[1749096547328,1.3082,2622.8,2622.6,6.184]
[1749096547826,5.09714388,2622.8,2622.5,8.218]
[1749096548000,4.63194898,2622.8,2622.7,1.595]
[1749096548393,4.63194898,2622.8,2622.7,7.779]
[1749096549206,5.18194898,2622.8,2622.7,7.779]
[1749096549406,5.18194898,2622.8,2622.7,1.595]
[1749096549751,5.80994388,2622.8,2622.7,1.595]
[1749096549951,5.80994388,2622.8,2622.7,7.779]
[1749096550303,0.55,2622.7,2622.5,8.218]
[1749096550506,1.8674,2622.7,2622.6,1.595]
[1749096550723,2.10815949,2622.7,2622.6,7.779]
[1749096551803,5.43190847,2622.7,2622.6,7.779]
[1749096552412,5.43190847,2622.7,2622.6,1.595]
[1749096552640,5.43190847,2622.7,2622.6,7.779]
[1749096557359,5.43190847,2622.7,2622.6,7.78]
[1749096557531,5.43190847,2622.7,2622.5,8.218]
[1749096557532,4.11450847,2622.7,2622.5,8.218]
[1749096557740,2.33347034,2622.6,2622.5,8.218]
[1749096557937,2.33347034,2622.6,2622.5,15.999]
[1749096569472,2.33347034,2622.6,2622.5,9.814]
[1749096569674,2.33347034,2622.6,2622.5,15.999]
[1749096569973,0.55,2622.3,2620.9,22.356494]
[1749096570165,4.33721932,2622.6,2620.8,3.32374898]
[1749096570166,0.55,2621.9,2621.1,24.216355]
[1749096570352,0.55,2621.9,2621.1,14.216355]
[1749096570751,0.55,2621.7,2620.6,3.32374898]
[1749096570993,0.55,2621.7,2620.3,0.32985998]
[1749096570994,0.55,2621.3,2620.8,3.987537]
[1749096571315,0.55,2621.3,2620.9,7.78]
[1749096571521,0.55,2621.3,2621.0,1.595]
[1749096572581,0.55,2621.3,2621.1,6.185]
[1749096573992,4.71074898,2621.3,2620.6,10.0]
[1749096574195,0.55,2621.2,2620.7,7.78]
[1749096574407,4.71074898,2621.3,2620.8,7.78]
[1749096574408,0.55,2621.3,2620.8,7.78]
[1749096574722,0.55,2621.3,2620.9,1.595]
[1749096575121,0.55,2621.4,2620.9,1.595]
[1749096575321,0.55,2621.4,2621.0,8.222]
[1749096576033,0.55,2621.6,2621.0,8.222]
[1749096577038,3.87374898,2621.6,2621.0,8.222]
[1749096580623,3.32374898,2621.4,2621.0,8.222]
[1749096580821,3.32374898,2621.4,2621.1,6.186]
[1749096581340,4.75534898,2621.4,2621.0,8.222]
[1749096581752,4.75534898,2621.4,2621.1,6.186]
[1749096582420,3.32374898,2621.4,2621.1,6.186]
[1749096583146,3.32374898,2621.4,2621.2,6.186]
[1749096584043,5.30264898,2621.6,2621.2,6.186]
[1749096584347,5.83291388,2621.6,2621.2,6.186]
[1749096585247,2.5091649,2621.6,2621.2,6.186]
[1749096585464,5.30264898,2621.6,2621.2,6.186]
[1749096588949,0.55,2621.7,2621.2,6.186]
[1749096590034,1.3488,2621.9,2621.2,6.186]
[1749096590035,0.55,2621.5,2621.2,6.186]
[1749096594761,0.02,2621.9,2621.2,6.186]
[1749096596033,3.34374898,2621.9,2621.2,6.186]
[1749096596438,3.86975388,2621.9,2621.3,6.185]
[1749096598469,3.86975388,2621.9,2621.4,1.595]
[1749096600576,3.34374898,2621.9,2621.4,1.595]
[1749096600962,0.02,2621.9,2621.4,1.595]
[1749096602654,0.02,2621.9,2621.5,9.07877]
[1749096604082,0.02,2621.9,2621.4,1.595]
[1749096604285,0.53223752,2622.3,2621.5,10.806662]
[1749096604480,1.05988617,2622.3,2621.5,10.806662]
[1749096604849,3.32374898,2622.2,2621.5,8.236762]
[1749096606343,0.55,2622.1,2621.5,8.236762]
[1749096611849,0.55,2622.1,2621.6,7.777]
[1749096619887,0.55,2622.1,2621.6,1.594]
[1749096620086,0.55,2621.9,2621.6,1.594]
[1749096620293,0.55,2621.9,2621.8,16.0]
[1749096621027,0.55,2621.9,2621.6,1.594]
[1749096621157,1.9103,2621.9,2621.8,6.183]
[1749096621357,5.46381647,2621.9,2621.8,6.183]
[1749096621578,5.46381647,2621.9,2621.6,1.594]
[1749096621781,3.87374898,2621.7,2621.6,1.594]
[1749096621970,5.20004898,2621.7,2621.6,7.777]
[1749096622165,5.20004898,2621.7,2621.6,23.777]
[1749096622388,5.74303063,2621.7,2621.6,23.777]
[1749096622791,5.74303063,2621.7,2621.6,7.777]
[1749096624762,0.55,2621.5,2621.1,16.0]
[1749096624982,0.55,2621.5,2621.2,7.777]
[1749096625173,3.87374898,2621.3,2621.2,23.777]
[1749096628597,3.87374898,2621.3,2621.2,17.594]
[1749096628801,3.87374898,2621.3,2621.2,23.777]
[1749096629495,0.55,2621.4,2621.2,23.777]
[1749096634928,0.55,2621.4,2621.2,16.0]
[1749096635117,5.30244898,2621.3,2621.2,16.0]
[1749096635300,5.30244898,2621.3,2621.2,23.776]
[1749096637001,5.30244898,2621.3,2621.2,17.593]
[1749096637205,5.30244898,2621.3,2621.2,23.776]
[1749096640731,5.88544137,2621.3,2621.2,23.776]
[1749096644238,5.88544137,2621.3,2621.2,1.593]
[1749096644441,5.88544137,2621.3,2621.2,7.776]
[1749096645151,5.88544137,2621.3,2621.2,1.593]
[1749096645327,5.88544137,2621.3,2621.2,7.776]
[1749096648047,5.88544137,2621.3,2621.2,1.593]
[1749096648254,5.88544137,2621.3,2621.2,7.776]
[1749096649870,5.88544137,2621.3,2621.2,1.593]
[1749096650024,5.88544137,2621.3,2621.2,7.776]
[1749096650355,5.88544137,2621.3,2621.2,1.593]
[1749096650674,1.13854414,2621.2,2620.7,8.225]
[1749096650888,3.32374898,2621.0,2620.8,1.593]
[1749096651173,0.55,2620.9,2619.0,15.476209]
[1749096651329,0.55,2619.8,2618.6,30.0]
[1749096651528,0.55,2619.8,2618.9,12.001962]
[1749096651845,0.55,2620.0,2619.1,17.829843]
[1749096652160,0.55,2620.0,2619.3,10.0]
[1749096652362,0.55,2620.0,2619.5,10.0]
[1749096652665,0.55,2620.0,2619.3,16.363472]
[1749096653077,0.55,2620.0,2619.4,16.0]
[1749096653285,0.55,2620.0,2619.4,2.810782]
[1749096653432,0.55,2620.0,2619.3,16.0]
[1749096653782,0.55,2620.0,2619.4,8.731634]
[1749096653928,3.32374898,2619.9,2619.1,16.0]
[1749096654134,0.55,2619.8,2619.3,16.0]
[1749096655251,1.8927,2619.8,2619.4,14.409]
[1749096655455,1.8927,2619.8,2619.5,1.594]
[1749096656241,1.3427,2620.0,2619.5,1.594]
[1749096656448,0.55,2619.9,2619.5,1.594]
[1749096660567,0.55,2619.6,2619.5,1.594]
[1749096660875,0.55,2619.6,2619.5,7.778]
[1749096661076,0.55,2619.6,2619.5,1.594]
[1749096661316,1.0789449,2619.6,2619.5,7.778]
[1749096661617,2.4798449,2619.6,2619.5,1.594]
[1749096661818,2.4798449,2619.6,2619.5,7.778]
[1749096669585,2.4798449,2619.6,2619.5,1.594]
[1749096669784,2.4798449,2619.6,2619.5,7.779]
[1749096670317,2.4798449,2619.6,2619.5,1.594]
[1749096670484,2.4798449,2619.6,2619.5,7.779]
[1749096670884,2.4798449,2619.6,2619.5,1.594]
[1749096671084,2.4798449,2619.6,2619.5,7.779]
[1749096672045,2.4798449,2619.6,2619.5,1.594]
[1749096672258,2.4798449,2619.6,2619.5,7.779]
[1749096674551,2.4798449,2619.6,2619.5,1.594]
[1749096674849,2.4798449,2619.6,2619.5,7.779]
[1749096675406,2.4798449,2619.6,2619.5,1.594]
[1749096675607,2.4798449,2619.6,2619.5,7.779]
[1749096677056,2.4798449,2619.6,2619.5,1.594]
[1749096677260,2.4798449,2619.6,2619.5,7.779]
[1749096677467,2.4798449,2619.6,2619.5,1.594]
[1749096677635,2.4798449,2619.6,2619.5,7.779]
[1749096681986,5.80359388,2619.6,2619.5,7.779]
[1749096687077,5.80359388,2619.6,2619.5,1.594]
[1749096687243,5.80359388,2619.6,2619.5,7.779]
[1749096688878,5.80359388,2619.6,2619.4,8.226]
[1749096689076,1.13035939,2619.5,2619.4,8.226]
[1749096689274,1.13035939,2619.5,2619.4,16.004]
[1749096690190,1.13035939,2619.5,2619.4,1.593]
[1749096690394,4.45410837,2619.5,2619.4,1.593]
[1749096691487,4.45410837,2619.5,2619.4,7.778]
[1749096692093,4.45410837,2619.5,2619.4,1.593]
[1749096692251,5.74550837,2619.5,2619.4,1.593]
[1749096692596,0.02,2618.9,2617.5,30.0]
[1749096692793,0.55,2618.6,2617.5,8.130212]
[1749096693499,0.55,2618.6,2617.7,11.235556]
[1749096693675,0.55,2618.8,2617.9,33.000781]
[1749096693868,0.55,2618.8,2618.0,6.185]
[1749096695299,0.55,2618.8,2618.1,9.823]
[1749096697677,0.55,2618.6,2618.2,6.185]
[1749096697874,0.55,2618.4,2618.1,9.823]
[1749096698273,0.55,2618.4,2618.2,6.185]
[1749096698474,0.55,2618.4,2618.1,9.823]
[1749096698475,0.55,2618.2,2618.1,9.823]
[1749096698886,0.55,2618.2,2618.1,16.008]
[1749096708132,0.9373749,2618.2,2618.1,1.593]
[1749096708301,4.26112388,2618.2,2618.1,1.593]
[1749096708683,5.55702388,2618.2,2618.1,1.593]
[1749096710593,0.02,2617.9,2617.0,21.951553]
[1749096710819,0.57,2617.9,2616.9,25.019086]
[1749096711334,0.57,2617.9,2616.9,15.6818]
[1749096711709,0.57,2617.9,2617.1,27.635185]
[1749096711920,0.57,2617.9,2617.1,17.635185]
[1749096712606,0.57,2617.9,2617.1,15.5451]
[1749096712834,0.02,2617.9,2617.1,15.5451]
[1749096714628,0.57,2617.9,2617.1,15.5451]
[1749096715303,0.57,2617.9,2617.3,15.325503]
[1749096715828,0.57,2617.9,2617.3,14.24971]
[1749096716945,0.02,2617.9,2617.4,3.32374898]
[1749096717114,0.02,2617.9,2617.5,18.912256]
[1749096717314,0.02,2617.9,2617.3,30.0]
[1749096717902,0.02,2617.9,2617.3,29.013648]
[1749096718108,0.02,2617.9,2617.3,25.727206]
[1749096718523,0.02,2617.9,2617.3,25.284629]
[1749096719706,0.00089821,2617.9,2617.3,18.761304]
[1749096720834,0.00089821,2617.9,2617.6,3.32374898]
[1749096721045,0.00089821,2617.9,2617.7,27.296462]
[1749096721211,0.00089821,2617.9,2617.8,33.844602]
[1749096721622,0.00089821,2617.9,2617.8,37.16835098]
[1749096722612,8.082e-05,2617.9,2617.8,37.16835098]
[1749096725049,0.02,2618.9,2617.9,30.0]
[1749096725253,0.02,2618.9,2618.1,40.0]
[1749096725570,0.02,2618.9,2618.1,25.707648]
[1749096726343,0.02,2618.9,2618.2,20.019173]
[1749096726663,0.02,2618.9,2618.5,10.0]
[1749096726833,0.02,2618.9,2618.6,1.592]
[1749096727857,0.02,2618.9,2618.7,6.185]
[1749096728727,0.02,2618.9,2618.1,10.0]
[1749096728924,0.02,2618.9,2618.8,6.185]
[1749096729224,1.2926,2618.8,2618.2,10.0]
[1749096729423,0.55,2618.6,2618.3,7.777]
[1749096729652,0.55,2618.6,2618.1,5.572109]
[1749096729866,0.55,2618.6,2618.4,7.776]
[1749096730339,0.55,2618.6,2618.5,6.184]
[1749096731223,0.55,2618.7,2618.5,6.184]
[1749096731423,3.87374898,2618.7,2618.5,6.184]
[1749096731838,3.87374898,2618.7,2618.6,1.592]
[1749096732055,4.39238388,2618.7,2618.6,1.592]
[1749096732973,5.71508388,2618.7,2618.6,7.776]
[1749096733968,1.3555,2618.4,2617.2,3.32374898]
[1749096734162,0.55,2618.3,2617.4,23.607319]
[1749096734553,0.55,2618.3,2617.4,21.708319]
[1749096735332,0.55,2618.3,2617.6,19.880418]
[1749096736179,0.55,2618.3,2617.5,8.232]
[1749096736375,0.55,2618.3,2617.6,5.163679]
[1749096736531,0.55,2618.3,2617.6,16.184]
[1749096736730,0.55,2618.3,2617.7,10.0]
[1749096737256,3.32374898,2618.2,2617.5,8.232]
[1749096737469,1.2593,2618.2,2617.8,7.776]
[1749096737629,1.2593,2618.2,2617.1,3.32374898]
[1749096737834,1.2593,2618.2,2617.3,16.933738]
[1749096738572,1.2593,2618.2,2617.4,25.126779]
[1749096739071,1.2593,2618.2,2617.4,22.362128]
[1749096739657,0.02,2617.9,2617.4,22.362128]
[1749096740499,0.00103734,2617.9,2617.4,22.362128]
[1749096741897,0.00103734,2617.9,2617.4,13.362642]
[1749096742072,0.00103734,2617.9,2617.6,14.001]
[1749096742393,0.00103734,2617.9,2617.7,10.0]
[1749096742594,0.00103734,2617.9,2617.8,1.592]
[1749096745160,1.3156,2617.8,2617.3,10.0]
[1749096745368,0.55,2617.7,2617.4,9.825]
[1749096745661,0.55,2617.7,2617.5,16.01]
[1749096745889,0.55,2617.7,2617.6,1.592]
[1749096746059,1.3156,2617.8,2617.6,1.592]
[1749096746300,0.00103734,2617.9,2617.7,26.820026]
[1749096746485,0.00103734,2617.9,2617.7,9.877559]
[1749096746681,0.00103734,2617.9,2617.7,9.53419]
[1749096746900,0.00103734,2617.9,2617.7,13.03957]
[1749096747102,0.00103734,2617.9,2617.6,10.0]
[1749096747307,0.55103734,2617.9,2617.7,7.785]
[1749096747461,1.07455597,2617.9,2617.8,6.194]
[1749096747661,0.55,2617.7,2615.9,0.07876447]
[1749096748005,0.55,2617.5,2616.7,3.32374898]
[1749096748164,0.55,2617.5,2616.9,35.66139298]
[1749096748361,0.55,2617.5,2617.1,9.234038]
[1749096748690,0.00103734,2617.9,2617.0,1.592]
[1749096748691,0.55,2617.8,2617.4,10.0]
[1749096748866,0.55,2617.8,2617.5,8.233]
[1749096749065,0.55,2617.8,2617.6,1.592]
[1749096749703,0.00103734,2617.9,2617.7,10.0]
[1749096755110,4.757e-05,2617.9,2617.7,10.0]
[1749096761207,4.757e-05,2617.9,2617.7,30.0]
[1749096762419,4.757e-05,2617.9,2617.7,25.568687]
[1749096763486,4.757e-05,2617.9,2617.7,17.82477039]
[1749096763717,4.757e-05,2617.9,2617.7,25.568687]
[1749096764222,4.757e-05,2617.9,2617.7,23.940686]
[1749096765124,1.8271,2618.3,2617.7,23.940686]
[1749096767928,1.8271,2618.3,2617.7,22.042514]
[1749096769029,1.8271,2618.3,2617.8,8.233]
[1749096771053,1.2771,2618.3,2617.8,8.233]
[1749096773349,1.3285,2618.5,2617.9,19.594332]
[1749096773561,0.02,2618.9,2618.0,30.0]
[1749096773562,1.2953,2618.8,2618.0,30.0]
[1749096773758,0.55,2618.7,2618.0,30.0]
[1749096774744,1.2953,2618.8,2618.1,3.32374898]
[1749096774918,1.2953,2618.8,2618.3,32.130126]
[1749096775124,1.2953,2618.8,2618.3,18.160524]
[1749096776770,0.02,2618.9,2618.3,18.160524]
[1749096776909,0.57,2618.9,2618.3,18.160524]
[1749096778212,0.02,2618.9,2618.6,26.790677]
[1749096778558,0.00115105,2618.9,2618.6,16.790677]
[1749096779114,0.00115105,2618.9,2618.6,16.350703]
[1749096779350,0.00115105,2618.9,2618.8,6.135514]
[1749096779615,0.00115105,2618.9,2618.8,5.456714]
[1749096781314,0.00115105,2618.9,2618.8,21.456714]
[1749096782574,0.00115105,2618.9,2618.8,27.655714]
[1749096782913,0.00115105,2618.9,2618.8,18.76322506]
[1749096783160,0.00115105,2618.9,2618.8,22.53711606]
[1749096788746,7.762e-05,2618.9,2618.8,22.53711606]
[1749096796422,7.762e-05,2618.9,2618.8,22.52611606]
[1749096796942,7.762e-05,2618.9,2618.8,30.75511606]
[1749096798591,7.762e-05,2618.9,2618.8,22.96711606]
[1749096798888,1.2359,2619.5,2619.0,10.0]
[1749096798889,1.3442,2619.3,2619.0,10.0]
[1749096799071,1.8942,2619.3,2618.9,16.0]
[1749096799271,1.8942,2619.3,2619.0,2.437298]
[1749096799476,1.8942,2619.3,2618.9,16.0]
[1749096799661,1.8942,2619.3,2619.0,8.109164]
[1749096801867,1.8942,2619.3,2619.2,16.0]
[1749096802068,1.8942,2619.3,2618.9,3.877326]
[1749096802308,1.8942,2619.3,2619.0,10.0]
[1749096802473,1.8942,2619.3,2619.1,2.436913]
[1749096802804,1.8942,2619.3,2619.2,1.6]
[1749096805372,0.02,2619.9,2619.2,14.816722]
[1749096805606,0.02,2619.9,2619.4,25.745851]
[1749096808037,0.02,2619.9,2619.8,15.768745]
[1749096808185,0.02,2619.9,2619.8,10.173298]
[1749096809023,0.00139025,2619.9,2619.8,10.173298]
[1749096815634,1.2969,2620.6,2620.1,26.969417]
[1749096815836,1.2969,2620.6,2620.2,8.227]
[1749096816739,0.55,2620.8,2620.2,8.227]
[1749096816740,1.248,2620.8,2620.4,24.10259]
[1749096816920,1.248,2620.8,2620.6,26.875553]
[1749096817118,0.57,2620.9,2620.6,12.60292]
[1749096817438,0.02,2620.9,2620.6,12.60292]
[1749096817792,0.02,2620.9,2620.6,6.718048]
[1749096817990,0.02,2620.9,2620.7,10.0]
[1749096818249,0.02,2620.9,2620.8,6.182]
[1749096820541,0.57,2620.9,2620.4,10.0]
[1749096820740,0.57,2620.9,2620.8,7.773]
[1749096821092,1.0862649,2620.9,2620.8,7.773]
[1749096823261,1.3351,2621.6,2620.9,28.10875]
[1749096823459,1.3351,2621.6,2620.8,11.09674898]
[1749096823460,1.3351,2621.6,2621.3,9.999732]
[1749096823755,1.3351,2621.6,2621.4,1.592]
[1749096823939,1.3351,2621.6,2621.5,8.226]
[1749096824537,1.8851,2621.6,2621.5,8.226]
[1749096826258,1.3351,2621.6,2621.5,8.226]
[1749096833184,0.55,2621.7,2621.5,8.226]
[1749096834537,1.2294,2621.8,2621.5,8.226]
[1749096834744,0.02,2621.9,2621.7,10.0]
[1749096834745,0.57,2621.9,2621.7,10.0]
[1749096834943,0.57,2621.9,2621.8,6.195]
[1749096837069,0.57,2621.9,2621.8,7.786]
[1749096842014,0.57,2621.9,2621.8,16.008]
[1749096845713,0.57,2621.9,2621.8,9.813]
[1749096845921,0.57,2621.9,2621.8,15.998]
[1749096846288,0.57,2621.9,2621.8,16.002]
[1749096846488,0.57,2621.9,2621.8,1.595]
[1749096846706,1.0867249,2621.9,2621.8,7.78]
[1749096847301,1.0867249,2621.9,2620.8,3.32374898]
[1749096847638,0.57,2621.9,2621.0,30.0]
[1749096848042,0.57,2621.9,2621.0,21.17323895]
[1749096848339,0.57,2621.9,2621.0,40.0]
[1749096848536,0.57,2621.9,2621.0,30.0]